bitfinex/quotes_BTCUSD_20240729
["timestamp","ask_amount","ask_price","bid_price","bid_amount"]
[1722273293288,0.06403468,67220.0,67208.0,0.04960725]
[1722273293289,0.148772,67217.0,67208.0,0.04960725]
[1722273293507,0.44063539,67219.0,67208.0,0.04960725]
[1722273293508,0.20713407,67216.0,67208.0,0.04960725]
[1722273293841,0.20713407,67216.0,67196.0,0.08887391]
[1722273293842,0.08737342,67215.0,67197.0,0.01478233]
[1722273294060,0.29259899,67214.0,67200.0,0.04940945]
[1722273294236,0.297588,67207.0,67200.0,0.04940945]
[1722273294408,0.297588,67207.0,67199.0,0.02982]
[1722273294409,0.50472707,67206.0,67183.0,0.08703695]
[1722273294614,0.06403468,67205.0,67189.0,0.07154355]
[1722273294816,0.14309939,67204.0,67190.0,0.04974073]
[1722273295014,0.14309939,67204.0,67196.0,0.07154355]
[1722273295216,0.02334467,67202.0,67196.0,0.07154355]
[1722273295431,0.1443,67208.0,67196.0,0.07154355]
[1722273295432,0.14309939,67201.0,67196.0,0.07154355]
[1722273295975,0.14309939,67201.0,67189.0,0.12120145]
[1722273295976,0.0641917,67200.0,67190.0,0.02982]
[1722273296175,0.14309939,67199.0,67190.0,0.02982]
[1722273296368,0.14309939,67199.0,67182.0,0.07154355]
[1722273296369,0.148816,67197.0,67191.0,0.10136355]
[1722273296603,0.14309939,67196.0,67191.0,0.02982]
[1722273296732,0.148827,67192.0,67191.0,0.02982]
[1722273296931,0.20731532,67192.0,67185.0,0.02982]
[1722273297136,0.20731851,67191.0,67182.0,0.04911417]
[1722273297351,0.1444,67190.0,67182.0,0.04911417]
[1722273297555,0.14309939,67189.0,67182.0,0.04911417]
[1722273297750,0.14309939,67189.0,67183.0,0.07154355]
[1722273297935,0.14309939,67189.0,67178.0,0.009218]
[1722273297936,0.17184933,67189.0,67178.0,0.009218]
[1722273298136,0.02334887,67188.0,67178.0,0.009218]
[1722273298337,0.29193739,67187.0,67178.0,0.009218]
[1722273298541,0.14309939,67187.0,67178.0,0.009218]
[1722273298980,0.23371662,67187.0,67178.0,0.009218]
[1722273299227,0.14309939,67187.0,67178.0,0.009218]
[1722273299429,0.148845,67184.0,67178.0,0.009218]
[1722273299736,0.30642939,67189.0,67183.0,0.07154355]
[1722273299737,0.00875939,67189.0,67183.0,0.07154355]
[1722273300024,0.14309939,67188.0,67178.0,0.009218]
[1722273300224,0.148842,67185.0,67178.0,0.009218]
[1722273300365,0.14309939,67184.0,67178.0,0.009218]
[1722273300802,0.15740933,67184.0,67178.0,0.009218]
[1722273301006,0.148852,67181.0,67178.0,0.009218]
[1722273301211,0.446568,67179.0,67178.0,0.009218]
[1722273301417,0.88737939,67179.0,67178.0,0.009218]
[1722273301616,0.58966739,67179.0,67178.0,0.009218]
[1722273301811,0.29195539,67179.0,67178.0,0.009218]
[1722273302013,0.58966739,67179.0,67178.0,0.009218]
[1722273302217,0.88737939,67179.0,67178.0,0.009218]
[1722273302420,0.58966739,67179.0,67178.0,0.009218]
[1722273302663,0.88737939,67179.0,67178.0,0.009218]
[1722273302873,1.32769139,67179.0,67178.0,0.009218]
[1722273303073,1.32769139,67179.0,67167.0,0.04957328]
[1722273303074,0.34996724,67179.0,67167.0,0.04957328]
[1722273303201,0.34996724,67179.0,67156.0,0.01478233]
[1722273303202,0.14309939,67173.0,67156.0,0.01478233]
[1722273303621,0.148875,67170.0,67161.0,0.07154355]
[1722273303813,0.0811,67188.0,67172.0,0.07154355]
[1722273304016,0.0629,67194.0,67186.0,0.07154355]
[1722273304017,0.14309939,67187.0,67186.0,0.07154355]
[1722273304660,0.1391,67222.0,67188.0,0.02982]
[1722273304851,0.1391,67222.0,67197.0,0.07154355]
[1722273304852,0.148784,67212.0,67197.0,0.07154355]
[1722273305022,0.14309939,67211.0,67197.0,0.07154355]
[1722273305221,0.14309939,67211.0,67197.0,0.10136355]
[1722273305429,0.14309939,67211.0,67197.0,0.15085128]
[1722273305770,0.14309939,67211.0,67197.0,0.04948773]
[1722273306178,0.14309939,67211.0,67189.0,0.02982]
[1722273306380,0.00153678,67210.0,67189.0,0.02982]
[1722273306587,0.14309939,67208.0,67193.0,0.07154355]
[1722273306791,0.14309939,67208.0,67193.0,0.10136355]
[1722273306994,0.02334422,67205.0,67194.0,0.1]
[1722273307449,0.14309939,67205.0,67194.0,0.1]
[1722273307911,0.14309939,67205.0,67197.0,0.001]
[1722273308729,0.14309939,67205.0,67194.0,0.12982]
[1722273308923,0.14309939,67205.0,67194.0,0.13082]
[1722273309171,0.15609939,67205.0,67194.0,0.13082]
[1722273309370,0.013,67205.0,67194.0,0.13082]
[1722273309573,0.141,67215.0,67197.0,0.02982]
[1722273309768,0.148784,67212.0,67197.0,0.02982]
[1722273309955,0.14465359,67211.0,67194.0,0.1]
[1722273310291,0.297575,67210.0,67194.0,0.04940203]
[1722273310440,0.14465359,67209.0,67194.0,0.04940203]
[1722273310661,0.02334245,67207.0,67194.0,0.04940203]
[1722273310981,0.02334245,67207.0,67202.0,0.07154355]
[1722273311188,0.02334245,67207.0,67203.0,0.00297559]
[1722273311362,0.02334245,67207.0,67206.0,0.8238]
[1722273311561,0.0015542,67230.0,67209.0,0.02982]
[1722273311763,0.14309939,67229.0,67211.0,0.02982]
[1722273312016,0.14309939,67229.0,67211.0,0.12982]
[1722273312594,0.00106371,67228.0,67211.0,0.12982]
[1722273312798,0.148752,67226.0,67211.0,0.12982]
[1722273312981,0.14309939,67225.0,67211.0,0.12982]
[1722273313187,0.14309939,67225.0,67211.0,0.02982]
[1722273313188,0.0015542,67224.0,67211.0,0.02982]
[1722273313396,0.14309939,67223.0,67210.0,0.04917905]
[1722273313572,0.0015542,67222.0,67212.0,0.07154355]
[1722273313771,0.0015542,67222.0,67209.0,0.01478233]
[1722273313996,0.14309939,67221.0,67209.0,0.01478233]
[1722273314228,0.0015542,67220.0,67209.0,0.01478233]
[1722273314488,0.14309939,67219.0,67209.0,0.01478233]
[1722273314772,0.0015542,67218.0,67209.0,0.01478233]
[1722273314979,0.16799186,67218.0,67209.0,0.01478233]
[1722273315109,0.14465359,67218.0,67209.0,0.01478233]
[1722273315312,0.14465359,67218.0,67209.0,0.02222233]
[1722273315535,0.14309939,67218.0,67209.0,0.05204233]
[1722273315743,0.0015542,67217.0,67209.0,0.05204233]
[1722273315937,0.2215948,67232.0,67210.0,0.07154355]
[1722273316138,0.0015542,67230.0,67217.0,0.07154355]
[1722273316372,0.14309939,67229.0,67217.0,0.08632588]
[1722273316602,0.14309939,67229.0,67218.0,0.02982]
[1722273317276,0.00149806,67228.0,67218.0,0.02982]
[1722273317484,0.14309939,67227.0,67218.0,0.02982]
[1722273317684,0.0015542,67226.0,67218.0,0.02982]
[1722273318312,0.00083,67223.0,67218.0,0.02982]
[1722273318513,0.0015542,67222.0,67218.0,0.02982]
[1722273318923,0.00083,67223.0,67218.0,0.02982]
[1722273319079,0.00083,67223.0,67219.0,0.07451862]
[1722273319282,0.00083,67223.0,67222.0,0.2712]
[1722273319497,0.00083,67223.0,67222.0,0.3712]
[1722273319757,0.00083,67223.0,67222.0,0.2712]
[1722273319956,0.00083,67223.0,67217.0,0.01478233]
[1722273320182,0.14392939,67223.0,67217.0,0.01478233]
[1722273320336,0.14309939,67222.0,67217.0,0.01478233]
[1722273320535,0.0015542,67221.0,67217.0,0.01478233]
[1722273321139,0.14309939,67220.0,67217.0,0.01478233]
[1722273321342,0.297553,67215.0,67211.0,0.001]
[1722273321543,0.22665359,67214.0,67211.0,0.001]
[1722273322136,0.14878,67213.0,67211.0,0.001]
[1722273322337,0.59100059,67212.0,67211.0,0.001]
[1722273322538,0.98562095,67212.0,67211.0,0.001]
[1722273323214,0.58944639,67212.0,67211.0,0.001]
[1722273323543,0.88701139,67212.0,67211.0,0.001]
[1722273323959,0.97353246,67212.0,67211.0,0.001]
[1722273324158,0.743935,67210.0,67209.0,0.00744]
[1722273324360,0.95055546,67210.0,67209.0,0.00744]
[1722273324562,1.24812946,67210.0,67209.0,0.00744]
[1722273324784,1.34002364,67210.0,67209.0,0.00744]
[1722273324987,1.24812946,67210.0,67209.0,0.00744]
[1722273325157,1.28058598,67210.0,67209.0,0.00744]
[1722273325361,1.29458598,67210.0,67209.0,0.00744]
[1722273325561,1.26212946,67210.0,67209.0,0.00744]
[1722273325786,1.37572946,67210.0,67209.0,0.00744]
[1722273325983,2.14805562,67210.0,67209.0,0.00744]
[1722273326189,0.148838,67187.0,67186.0,0.04969787]
[1722273326439,0.88728939,67187.0,67186.0,0.04969787]
[1722273326608,0.14309939,67187.0,67168.0,0.07154355]
[1722273326767,0.446568,67179.0,67173.0,0.049834]
[1722273326988,1.07093619,67179.0,67173.0,0.049834]
[1722273327192,1.43222344,67179.0,67173.0,0.049834]
[1722273327579,1.43222344,67179.0,67158.0,0.01478233]
[1722273327580,1.48222344,67179.0,67158.0,0.01478233]
[1722273327712,1.50522344,67179.0,67154.0,0.13024232]
[1722273328121,1.46381791,67179.0,67154.0,0.13024232]
[1722273328340,1.16610591,67179.0,67154.0,0.13024232]
[1722273328678,1.46381791,67179.0,67154.0,0.13024232]
[1722273328891,1.51381791,67179.0,67154.0,0.13024232]
[1722273329061,1.88755089,67179.0,67154.0,0.13024232]
[1722273329267,1.67668271,67179.0,67154.0,0.13024232]
[1722273329529,1.69925662,67179.0,67154.0,0.13024232]
[1722273329735,1.6740183,67179.0,67154.0,0.13024232]
[1722273330163,1.7240183,67179.0,67154.0,0.13024232]
[1722273330368,1.63717448,67179.0,67154.0,0.13024232]
[1722273330744,2.02197133,67179.0,67154.0,0.13024232]
[1722273330945,2.14698427,67179.0,67154.0,0.13024232]
[1722273331275,2.1376277,67179.0,67154.0,0.13024232]
[1722273331473,1.8539157,67179.0,67154.0,0.13024232]
[1722273331706,1.8399157,67179.0,67154.0,0.13024232]
[1722273331877,1.8259157,67179.0,67154.0,0.13024232]
[1722273332224,1.68953187,67179.0,67163.0,0.07154355]
[1722273332448,0.75116186,67179.0,67178.0,0.00786549]
[1722273332745,1.09887386,67179.0,67178.0,0.00786549]
[1722273332977,1.44658586,67179.0,67178.0,0.00786549]
[1722273333150,1.79429786,67179.0,67178.0,0.00786549]
[1722273333438,1.48968525,67179.0,67178.0,0.00786549]
[1722273333600,1.58968525,67179.0,67178.0,0.00786549]
[1722273333801,1.76365029,67179.0,67178.0,0.00786549]
[1722273334166,1.69024049,67179.0,67178.0,0.00786549]
[1722273334373,1.62668525,67179.0,67178.0,0.00786549]
[1722273334594,1.25233011,67179.0,67178.0,0.00786549]
[1722273334793,1.22933011,67179.0,67178.0,0.00786549]
[1722273334997,0.49080672,67179.0,67178.0,0.00786549]
[1722273335316,0.77451872,67179.0,67178.0,0.00786549]
[1722273335758,1.07223072,67179.0,67178.0,0.00786549]
[1722273335983,1.04887386,67179.0,67178.0,0.00786549]
[1722273336357,0.30459386,67179.0,67161.0,0.12092373]
[1722273336496,0.148872,67172.0,67161.0,0.12092373]
[1722273336706,0.148875,67170.0,67161.0,0.12092373]
[1722273336908,0.88747639,67170.0,67161.0,0.12092373]
[1722273337114,0.88747639,67170.0,67161.0,0.04938018]
[1722273337514,0.88747639,67170.0,67154.0,0.08076155]
[1722273337863,0.58972539,67170.0,67154.0,0.13070839]
[1722273338065,0.60372539,67170.0,67154.0,0.13070839]
[1722273338383,0.69387213,67170.0,67154.0,0.13070839]
[1722273338589,0.67987213,67170.0,67154.0,0.13070839]
[1722273338797,0.88747639,67170.0,67154.0,0.13070839]
[1722273338947,0.90147639,67170.0,67154.0,0.13070839]
[1722273339137,0.93372161,67170.0,67154.0,0.13070839]
[1722273339333,0.91036327,67170.0,67155.0,0.07154355]
[1722273339571,1.0431732,67170.0,67155.0,0.07154355]
[1722273339774,0.92236327,67170.0,67155.0,0.07154355]
[1722273339983,0.91036327,67170.0,67154.0,0.05916484]
[1722273340152,0.92236327,67170.0,67155.0,0.07154355]
[1722273340559,0.92236327,67170.0,67155.0,0.12141697]
[1722273340785,0.90836327,67170.0,67155.0,0.12141697]
[1722273341191,0.92236327,67170.0,67155.0,0.12141697]
[1722273341774,1.0303732,67170.0,67155.0,0.12141697]
[1722273341991,1.0323732,67170.0,67155.0,0.12141697]
[1722273342168,0.31486127,67170.0,67155.0,0.12141697]
[1722273342377,0.17798627,67170.0,67155.0,0.12141697]
[1722273342603,0.35021908,67170.0,67155.0,0.12141697]
[1722273342803,0.20134408,67170.0,67155.0,0.12141697]
[1722273343213,0.1924572,67170.0,67167.0,0.2718]
[1722273343489,0.1924572,67170.0,67168.0,0.07154355]
[1722273343719,0.026,67170.0,67168.0,0.07154355]
[1722273344492,0.012,67170.0,67168.0,0.07154355]
[1722273345096,0.026,67170.0,67168.0,0.07154355]
[1722273345484,0.012,67170.0,67168.0,0.07154355]
[1722273345894,0.026,67170.0,67168.0,0.07154355]
[1722273346099,0.026,67170.0,67169.0,0.158096]
[1722273346324,0.026,67170.0,67169.0,0.139038]
[1722273346528,0.014,67170.0,67169.0,0.139038]
[1722273346900,0.016,67170.0,67169.0,0.287916]
[1722273347119,0.0393534,67170.0,67169.0,0.139038]
[1722273347315,0.0373534,67170.0,67169.0,0.139038]
[1722273347496,0.0383534,67170.0,67169.0,0.139038]
[1722273347867,0.0373534,67170.0,67169.0,0.139038]
[1722273348081,0.0373534,67170.0,67169.0,0.009218]
[1722273348393,0.0383534,67170.0,67169.0,0.009218]
[1722273348594,0.15809939,67170.0,67169.0,0.009218]
[1722273348747,0.15709939,67170.0,67169.0,0.009218]
[1722273348926,0.17290933,67170.0,67169.0,0.009218]
[1722273349478,0.60553533,67170.0,67169.0,0.009218]
[1722273349717,0.91724633,67170.0,67169.0,0.009218]
[1722273350234,0.60549533,67170.0,67169.0,0.009218]
[1722273350439,0.60649533,67170.0,67169.0,0.009218]
[1722273350692,0.60549533,67170.0,67169.0,0.009218]
[1722273350892,0.90824633,67170.0,67169.0,0.009218]
[1722273351747,1.22935465,67170.0,67169.0,0.009218]
[1722273351951,1.32998849,67170.0,67169.0,0.009218]
[1722273352178,1.00888017,67170.0,67169.0,0.009218]
[1722273353173,1.05570385,67170.0,67169.0,0.009218]
[1722273353374,1.35345485,67170.0,67169.0,0.009218]
[1722273353592,1.33945485,67170.0,67169.0,0.009218]
[1722273353819,1.35345485,67170.0,67169.0,0.009218]
[1722273354026,1.97967201,67170.0,67169.0,0.009218]
[1722273354190,1.97967201,67170.0,67155.0,0.04987342]
[1722273354191,1.180449,67156.0,67155.0,0.04987342]
[1722273354394,0.744545,67155.0,67154.0,0.009218]
[1722273354610,1.27237714,67155.0,67154.0,0.009218]
[1722273354794,1.33524353,67155.0,67154.0,0.009218]
[1722273355108,1.03742553,67155.0,67154.0,0.009218]
[1722273355310,1.09570195,67155.0,67154.0,0.009218]
[1722273355629,1.06078974,67155.0,67154.0,0.009218]
[1722273355839,1.03742553,67155.0,67154.0,0.009218]
[1722273356741,0.23001414,67155.0,67154.0,0.009218]
[1722273357084,0.14309939,67155.0,67154.0,0.009218]
[1722273357603,0.52859054,67155.0,67154.0,0.009218]
[1722273357826,0.23077254,67155.0,67154.0,0.009218]
[1722273358032,0.29777,67166.0,67154.0,0.009218]
[1722273358232,0.1444,67167.0,67155.0,0.07154355]
[1722273358233,0.148889,67164.0,67155.0,0.07154355]
[1722273358389,0.29365545,67163.0,67155.0,0.07154355]
[1722273358613,0.15055606,67162.0,67155.0,0.07154355]
[1722273358813,0.29365545,67161.0,67155.0,0.07154355]
[1722273359077,0.014,67155.0,67154.0,0.009218]
[1722273359658,0.14309939,67161.0,67154.0,0.009218]
[1722273359863,0.21933885,67160.0,67154.0,0.009218]
[1722273360061,0.29376751,67159.0,67154.0,0.009218]
[1722273360262,0.06279548,67158.0,67155.0,0.07154355]
[1722273360462,0.14309939,67157.0,67155.0,0.07154355]
[1722273360666,0.06279548,67156.0,67155.0,0.07154355]
[1722273360865,0.22882045,67156.0,67154.0,0.02400033]
[1722273361153,0.14309939,67155.0,67154.0,0.02400033]
[1722273361363,0.2059044,67155.0,67154.0,0.009218]
[1722273361693,0.2932144,67155.0,67154.0,0.009218]
[1722273361890,0.7399414,67155.0,67154.0,0.009218]
[1722273362155,0.85638469,67155.0,67154.0,0.009218]
[1722273362282,0.55856669,67155.0,67154.0,0.009218]
[1722273362477,0.85638469,67155.0,67154.0,0.009218]
[1722273362735,1.45202069,67155.0,67154.0,0.009218]
[1722273363474,1.50219625,67155.0,67154.0,0.009218]
[1722273363681,1.52519625,67155.0,67154.0,0.009218]
[1722273363858,0.641627,67140.0,67139.0,0.009218]
[1722273364153,1.53078696,67140.0,67139.0,0.009218]
[1722273364388,1.18290196,67140.0,67139.0,0.009218]
[1722273364965,1.48078696,67140.0,67139.0,0.009218]
[1722273365138,1.20590196,67140.0,67139.0,0.009218]
[1722273365340,1.33649216,67140.0,67139.0,0.009218]
[1722273365618,1.35185513,67140.0,67139.0,0.009218]
[1722273366333,1.70007752,67140.0,67139.0,0.009218]
[1722273366503,1.91363741,67140.0,67139.0,0.009218]
[1722273366721,1.192643,67137.0,67136.0,0.009218]
[1722273366860,0.49688,67132.0,67131.0,0.00149167]
[1722273367051,1.40944735,67132.0,67131.0,0.00149167]
[1722273367248,1.45944735,67132.0,67131.0,0.00149167]
[1722273367450,0.29372735,67132.0,67131.0,0.00149167]
[1722273367809,0.31710087,67132.0,67131.0,0.00149167]
[1722273368075,0.22927792,67132.0,67131.0,0.00149167]
[1722273368600,0.18047291,67132.0,67131.0,0.00149167]
[1722273368801,0.65176735,67132.0,67131.0,0.00149167]
[1722273369011,0.71465985,67132.0,67131.0,0.00149167]
[1722273369195,1.02357985,67132.0,67131.0,0.00149167]
[1722273369401,1.10003883,67132.0,67131.0,0.00149167]
[1722273369639,0.81079265,67132.0,67131.0,0.00149167]
[1722273369996,1.13171265,67132.0,67131.0,0.00149167]
[1722273370814,0.81079265,67132.0,67131.0,0.00149167]
[1722273371065,0.72333367,67132.0,67131.0,0.00149167]
[1722273371286,0.42541367,67132.0,67131.0,0.00149167]
[1722273371486,0.22056117,67132.0,67131.0,0.00149167]
[1722273371725,0.1821456,67132.0,67131.0,0.00149167]
[1722273372078,0.15877321,67132.0,67131.0,0.00149167]
[1722273372881,0.60565321,67132.0,67131.0,0.00149167]
[1722273373089,0.65565321,67132.0,67131.0,0.00149167]
[1722273373346,1.00942522,67132.0,67131.0,0.00149167]
[1722273373546,1.12552461,67132.0,67131.0,0.00149167]
[1722273373702,1.52344461,67132.0,67131.0,0.00149167]
[1722273374041,1.12552461,67132.0,67131.0,0.00149167]
[1722273374244,1.17552461,67132.0,67131.0,0.00149167]
[1722273374762,1.60882144,67132.0,67131.0,0.00149167]
[1722273375358,1.60880733,67132.0,67131.0,0.00149167]
[1722273375596,1.142765,67129.0,67118.0,0.04965997]
[1722273375742,1.99811151,67129.0,67118.0,0.04965997]
[1722273375945,1.99811151,67129.0,67117.0,0.009218]
[1722273375946,0.7449,67123.0,67117.0,0.009218]
[1722273376146,0.7449,67123.0,67103.0,0.009218]
[1722273376147,0.05,67112.0,67103.0,0.009218]
[1722273376352,1.65063612,67112.0,67103.0,0.009218]
[1722273376514,0.447019,67111.0,67103.0,0.009218]
[1722273376713,0.77624845,67111.0,67103.0,0.009218]
[1722273376939,0.59011839,67111.0,67103.0,0.009218]
[1722273377153,0.61311839,67111.0,67103.0,0.009218]
[1722273378080,0.91113139,67111.0,67103.0,0.009218]
[1722273378260,1.45016843,67111.0,67103.0,0.009218]
[1722273378460,1.5671079,67111.0,67103.0,0.009218]
[1722273378681,1.56789983,67111.0,67103.0,0.009218]
[1722273379059,1.61789983,67111.0,67103.0,0.009218]
[1722273379287,1.67447958,67111.0,67103.0,0.009218]
[1722273379462,1.58782027,67111.0,67103.0,0.009218]
[1722273379648,1.60182027,67111.0,67103.0,0.009218]
[1722273380055,1.58782027,67111.0,67103.0,0.009218]
[1722273380252,0.299009,67110.0,67103.0,0.009218]
[1722273380474,0.199022,67104.0,67103.0,0.009218]
[1722273380673,1.19546123,67104.0,67103.0,0.009218]
[1722273380909,1.53526006,67104.0,67103.0,0.009218]
[1722273381219,1.14546123,67104.0,67103.0,0.009218]
[1722273381422,0.29212139,67104.0,67103.0,0.009218]
[1722273381783,0.28619878,67104.0,67103.0,0.009218]
[1722273381951,0.43522078,67104.0,67103.0,0.009218]
[1722273382300,0.45860245,67104.0,67103.0,0.009218]
[1722273382726,0.3182801,67104.0,67103.0,0.009218]
[1722273383036,0.29489843,67104.0,67103.0,0.009218]
[1722273383424,0.15179904,67104.0,67103.0,0.009218]
[1722273384048,0.59016539,67104.0,67103.0,0.009218]
[1722273384262,0.60416539,67104.0,67103.0,0.009218]
[1722273384411,0.60416539,67104.0,67103.0,0.115218]
[1722273384412,0.15709939,67104.0,67103.0,0.115218]
[1722273384612,0.30019878,67104.0,67103.0,0.009218]
[1722273385739,0.15709939,67104.0,67103.0,0.009218]
[1722273386152,0.18047941,67104.0,67103.0,0.009218]
[1722273386396,0.32950141,67104.0,67103.0,0.009218]
[1722273386754,0.91158941,67104.0,67103.0,0.009218]
[1722273387157,0.92558941,67104.0,67103.0,0.009218]
[1722273387356,1.04882069,67104.0,67103.0,0.009218]
[1722273388154,1.01144067,67104.0,67103.0,0.009218]
[1722273388358,1.02544067,67104.0,67103.0,0.009218]
[1722273388552,0.15709939,67104.0,67103.0,0.009218]
[1722273388756,0.16909939,67104.0,67103.0,0.009218]
[1722273389214,0.15709939,67104.0,67103.0,0.009218]
[1722273389573,0.027,67104.0,67103.0,0.112918]
[1722273389739,0.027,67104.0,67103.0,0.142738]
[1722273390116,1.28275716,67117.0,67103.0,0.142738]
[1722273390320,0.27137511,67116.0,67103.0,0.142738]
[1722273390439,0.014,67104.0,67103.0,0.142738]
[1722273390844,0.27137511,67116.0,67103.0,0.112918]
[1722273391061,0.27137511,67116.0,67104.0,0.07154355]
[1722273391279,0.27137511,67116.0,67113.0,0.07154355]
[1722273391484,1.2698,67124.0,67113.0,0.07154355]
[1722273391485,1.2739,67123.0,67113.0,0.07154355]
[1722273391685,0.14309939,67123.0,67114.0,0.0652]
[1722273391996,0.02337584,67116.0,67115.0,0.0426]
[1722273392172,0.14309939,67123.0,67115.0,0.0426]
[1722273392578,0.009,67116.0,67115.0,0.0426]
[1722273392759,0.14309939,67123.0,67115.0,0.0426]
[1722273392944,0.17230683,67122.0,67115.0,0.0426]
[1722273393540,0.14309939,67122.0,67115.0,0.11414355]
[1722273393785,0.47614,67132.0,67120.0,0.0426]
[1722273393786,1.75004,67132.0,67120.0,0.0426]
[1722273394002,1.75004,67132.0,67131.0,0.07154355]
[1722273394201,1.75004,67132.0,67131.0,0.14682588]
[1722273394202,0.00084,67132.0,67131.0,0.14682588]
[1722273394401,0.14393939,67132.0,67131.0,0.07528233]
[1722273394615,0.15833333,67132.0,67125.0,0.0649]
[1722273394818,0.14309939,67131.0,67125.0,0.0649]
[1722273395221,0.16646858,67131.0,67125.0,0.0649]
[1722273395669,0.16646858,67131.0,67120.0,0.0426]
[1722273395670,0.19111672,67130.0,67120.0,0.0426]
[1722273395809,0.20638292,67129.0,67120.0,0.0426]
[1722273396016,0.14309939,67129.0,67128.0,0.07154355]
[1722273397005,0.01484,67132.0,67128.0,0.07154355]
[1722273397313,0.002,67129.0,67128.0,0.07154355]
[1722273397520,0.002,67129.0,67128.0,0.45074355]
[1722273397717,0.002,67129.0,67128.0,0.64971255]
[1722273397943,0.002,67129.0,67128.0,1.34558855]
[1722273398345,0.002,67129.0,67128.0,1.07747055]
[1722273398785,0.002,67129.0,67128.0,1.22256994]
[1722273399006,0.014,67130.0,67129.0,0.591319]
[1722273399163,0.00084,67132.0,67131.0,0.528706]
[1722273399365,0.00084,67132.0,67131.0,1.43273572]
[1722273399575,0.00084,67132.0,67131.0,1.13481172]
[1722273399576,0.02420401,67132.0,67131.0,1.13481172]
[1722273400576,0.02520401,67132.0,67131.0,1.13481172]
[1722273400736,0.02420401,67132.0,67131.0,1.43273572]
[1722273401345,0.02520401,67132.0,67131.0,0.53696372]
[1722273401553,0.02520401,67132.0,67131.0,0.19490233]
[1722273401768,0.02520401,67132.0,67131.0,0.05230233]
[1722273402240,0.02520401,67132.0,67131.0,0.20126433]
[1722273402444,0.02520401,67132.0,67131.0,0.05230233]
[1722273403024,0.02520401,67132.0,67131.0,0.01478233]
[1722273403025,0.02420401,67132.0,67131.0,0.01478233]
[1722273404185,0.02420401,67132.0,67126.0,0.04460233]
[1722273404336,0.00084,67132.0,67126.0,0.04460233]
[1722273404538,0.00284,67132.0,67126.0,0.04460233]
[1722273405033,0.00084,67132.0,67128.0,0.07154355]
[1722273405902,0.01384,67132.0,67131.0,0.001]
[1722273406523,0.00084,67132.0,67128.0,0.10434274]
[1722273406727,0.00084,67132.0,67129.0,0.05]
[1722273406959,0.00084,67132.0,67131.0,0.198962]
[1722273407131,0.00084,67132.0,67131.0,0.148962]
[1722273407368,0.00084,67132.0,67131.0,0.198962]
[1722273407567,0.00084,67132.0,67130.0,0.02982]
[1722273407676,0.02520595,67132.0,67130.0,0.02982]
[1722273407882,0.02420595,67132.0,67130.0,0.02982]
[1722273408320,0.02520595,67132.0,67130.0,0.02982]
[1722273408528,0.03820595,67132.0,67130.0,0.02982]
[1722273408993,0.01484,67132.0,67130.0,0.02982]
[1722273409197,0.00184,67132.0,67130.0,0.02982]
[1722273409615,0.00184,67132.0,67130.0,0.03082]
[1722273409616,0.01484,67132.0,67130.0,0.03082]
[1722273410005,0.0015542,67131.0,67130.0,0.03082]
[1722273410413,0.01484,67132.0,67130.0,0.03082]
[1722273410570,0.0015542,67131.0,67130.0,0.03082]
[1722273410977,0.0015542,67131.0,67130.0,0.001]
[1722273411589,0.00884,67132.0,67130.0,0.001]
[1722273412419,0.03220706,67132.0,67130.0,0.001]
[1722273412576,0.00984,67132.0,67130.0,0.001]
[1722273413074,0.00984,67132.0,67131.0,0.198962]
[1722273413277,0.00984,67132.0,67131.0,0.148962]
[1722273413479,0.00984,67132.0,67130.0,0.08082]
[1722273413688,0.00984,67132.0,67131.0,0.2718]
[1722273413983,0.00884,67132.0,67131.0,0.2718]
[1722273414187,0.00984,67132.0,67131.0,0.2718]
[1722273414625,0.00984,67132.0,67130.0,0.02982]
[1722273414626,0.001,67132.0,67130.0,0.02982]
[1722273414940,0.013,67131.0,67130.0,0.03082]
[1722273416074,0.02336718,67131.0,67130.0,0.02982]
[1722273417035,0.02336718,67131.0,67130.0,0.30162]
[1722273417678,0.01083,67132.0,67130.0,0.30162]
[1722273418493,0.00183,67132.0,67130.0,0.30162]
[1722273418691,0.009,67131.0,67130.0,0.30262]
[1722273419715,0.00183,67132.0,67130.0,0.30162]
[1722273420319,0.01083,67132.0,67130.0,0.30262]
[1722273420520,0.01083,67132.0,67131.0,0.05]
[1722273420705,0.01083,67132.0,67130.0,0.451584]
[1722273420706,0.01083,67132.0,67130.0,0.30262]
[1722273420901,0.00983,67132.0,67130.0,0.30262]
[1722273421352,0.01083,67132.0,67130.0,0.30262]
[1722273421526,0.01083,67132.0,67130.0,0.03082]
[1722273421722,0.0015542,67131.0,67130.0,0.03082]
[1722273423069,0.001,67131.0,67130.0,0.03082]
[1722273424051,0.001,67131.0,67130.0,0.001]
[1722273424918,0.02436742,67131.0,67130.0,0.001]
[1722273426996,0.08769847,67131.0,67130.0,0.001]
[1722273427200,0.08769847,67131.0,67130.0,0.03082]
[1722273427500,0.02436742,67131.0,67130.0,1.043142]
[1722273427772,0.02436742,67131.0,67130.0,1.143142]
[1722273427773,0.001,67131.0,67130.0,1.143142]
[1722273427953,0.001,67131.0,67130.0,1.3054652]
[1722273428155,0.001,67131.0,67130.0,1.3056284]
[1722273428612,0.00983,67132.0,67131.0,0.528706]
[1722273428866,0.00983,67132.0,67131.0,1.43262212]
[1722273429055,0.00983,67132.0,67131.0,1.48462212]
[1722273429232,0.00983,67132.0,67131.0,1.75652212]
[1722273429449,0.00983,67132.0,67131.0,1.87952212]
[1722273429651,0.00983,67132.0,67131.0,1.82752212]
[1722273429856,0.00983,67132.0,67131.0,2.65652212]
[1722273430055,0.00983,67132.0,67131.0,2.55652212]
[1722273430283,0.00983,67132.0,67131.0,2.65652212]
[1722273430576,0.00983,67132.0,67131.0,2.75852212]
[1722273430955,0.00983,67132.0,67131.0,1.88767412]
[1722273430956,0.00083,67132.0,67131.0,1.88767412]
[1722273431156,0.0241936,67132.0,67131.0,0.92360233]
[1722273431362,0.0241936,67132.0,67131.0,0.14460233]
[1722273431578,0.0241936,67132.0,67131.0,0.04460233]
[1722273431793,0.0241936,67132.0,67131.0,0.05860233]
[1722273431997,0.08749913,67132.0,67131.0,0.05860233]
[1722273432328,0.08749913,67132.0,67131.0,0.04460233]
[1722273432329,0.06413553,67132.0,67131.0,0.04460233]
[1722273432867,0.07213553,67132.0,67131.0,0.04560233]
[1722273433068,0.07213553,67132.0,67131.0,0.001]